fUSD/lending_fUSD_20250820
["ID","MTS","AMOUNT","RATE_DAILY","PERIOD"]
[380309898,1755652260669,-253.910361,0.000175,2]
[380309899,1755652260678,-862.797813,0.000175,2]
[380309900,1755652260688,-151.0,0.000175,2]
[380309901,1755652260697,-468.325856,0.000175,2]
[380309902,1755652260707,-862.797813,0.000175,2]
[380309903,1755652260716,-253.910361,0.000175,2]
[380309904,1755652260726,-151.0,0.000175,2]
[380309905,1755652260735,-151.0,0.000175,2]
[380309906,1755652260745,-253.910361,0.000175,2]
[380309907,1755652260754,-151.0,0.000175,2]
[380309908,1755652260764,-253.910361,0.000175,2]
[380309909,1755652260774,-151.0,0.000175,2]
[380309910,1755652260784,-151.0,0.000175,2]
[380309911,1755652260793,-468.362175,0.000175,2]
[380309912,1755652260803,-468.362175,0.000175,2]
[380309913,1755652260812,-468.362175,0.000175,2]
[380309914,1755652260821,-151.0,0.000175,2]
[380309915,1755652260831,-468.362175,0.000175,2]
[380309916,1755652260840,-174.861886,0.000175,2]
[380309917,1755652260849,-174.861886,0.000175,2]
[380309918,1755652260858,-174.861886,0.000175,2]
[380309919,1755652260868,-174.861886,0.000175,2]
[380309920,1755652260877,-151.0,0.000175,2]
[380309921,1755652260888,-300.0,0.000175,3]
[380309922,1755652260898,-300.0,0.000175,3]
[380309923,1755652260908,-2500.0,0.000175,3]
[380309924,1755652260917,-300.0,0.000175,3]
[380309925,1755652260927,-300.0,0.000175,3]
[380309926,1755652260936,-300.0,0.000175,3]
[380309927,1755652260945,-151.0,0.000175,2]
[380309928,1755652260955,-151.0,0.000175,2]
[380309929,1755652260964,-151.0,0.000175,2]
[380309930,1755652260973,-150.0,0.00017511,2]
[380309931,1755652260983,-1000.0,0.00017524,2]
[380309932,1755652260992,-1000.0,0.0001753,2]
[380309933,1755652261002,-196.28,0.00017532,2]
[380309934,1755652261011,-500.0,0.00017534,2]
[380309935,1755652261020,-3529.4,0.00017534,2]
[380309936,1755652261032,-1664.3466846,0.00017534,2]
[380309937,1755652261042,-385.58518734,0.00017535,2]
[380309938,1755652261051,-1000.0,0.00017538,2]
[380309939,1755652261060,-1000.0,0.00017544,2]
[380309940,1755652261070,-500.0,0.00017544,2]
[380309941,1755652261079,-1425.0,0.00017544,2]
[380309942,1755652261088,-150.0,0.00017544,2]
[380309943,1755652261098,-150.0,0.00017554,2]
[380309944,1755652261107,-168.75726635,0.00017557,15]
[380309945,1755652261117,-150.0,0.0001756,2]
[380309946,1755652261127,-1425.0,0.0001757,2]
[380309947,1755652261137,-150.0,0.00017591,2]
[380309948,1755652261147,-2486.3476636,0.00017599,2]
[380309949,1755652261157,-2486.3476636,0.00017599,2]
[380309950,1755652261167,-2486.3476636,0.00017599,2]
[380309951,1755652261176,-2486.3476636,0.00017599,2]
[380309952,1755652261186,-1077.78681478,0.00017599,2]
[380309953,1755652262504,-348.55364224,0.00017599,2]
[380309954,1755652262561,-154.0,0.00013699,2]
[380309955,1755652262571,-1060.00720658,0.00017599,2]
[380309956,1755652262580,-2486.3476636,0.00017599,2]
[380309957,1755652262589,-2486.3476636,0.00017599,2]
[380309958,1755652262598,-1111.3082463,0.00017599,2]
[380309959,1755652264015,-1000.0,0.00014452,2]
[380309960,1755652264026,-1000.0,0.00015235,2]
[380309961,1755652264036,-1000.0,0.00015279,2]
[380309962,1755652264046,-1000.0,0.0001538,2]
[380309963,1755652264056,-167.43527318,0.00015557,2]
[380309964,1755652264068,-303.61216645,0.00015557,2]
[380309965,1755652264225,-528.95256037,0.00015557,2]
[380309966,1755652264234,-744.02811028,0.00017335,2]
[380309967,1755652264245,-250.97128073,0.00017335,2]
[380309968,1755652264256,-5.00060899,0.00017335,2]
[380309969,1755652264266,-322.38411282,0.00017599,2]
[380309970,1755652264409,-483.83781206,0.00014358,2]
[380309971,1755652264419,-1052.65530448,0.00017599,2]
[380309972,1755652264427,-2486.3476636,0.00017599,2]
[380309973,1755652264436,-2486.3476636,0.00017599,2]
[380309974,1755652264446,-1072.50726547,0.00017599,2]
[380309975,1755652265723,-1027.342687,0.00011216,2]
[380309976,1755652265732,-116.69859974,0.00011216,2]
[380309977,1755652265814,-678.77958304,0.00011216,2]
[380309978,1755652265825,-272.17041696,0.00011216,2]
[380309979,1755652265837,-362.38891226,0.00011216,2]
[380309980,1755652265846,-345.04393427,0.00011216,2]
[380309981,1755652265869,-682.29875273,0.00011216,2]
[380309982,1755652265878,-1027.342687,0.000133,2]
[380309983,1755652265887,-1430.037512,0.000133,2]
[380309984,1755652265896,-397.19648452,0.000133,2]
[380309985,1755652265936,-1430.037512,0.00011216,2]
[380309986,1755652265946,-630.14620248,0.000133,2]
[380309987,1755652265955,-1172.0,0.00014052,2]
[380309988,1755652265964,-1027.342687,0.00016438,2]
[380309989,1755652265974,-1430.037512,0.00016438,2]
[380309990,1755652265983,-1172.0,0.00017052,2]
[380309991,1755652265992,-1413.84039813,0.00017599,2]
[380309992,1755652266001,-2486.3476636,0.00017599,2]
[380309993,1755652266010,-697.57322772,0.00017599,2]
[380309994,1755652266054,-1027.342687,0.00016438,2]
[380309995,1755652266063,-1788.77443588,0.00017599,2]
[380309996,1755652266072,-2486.3476636,0.00017599,2]
[380309997,1755652266081,-2486.3476636,0.00017599,2]
[380309998,1755652266090,-2486.3476636,0.00017599,2]
[380309999,1755652266099,-2486.3476636,0.00017599,2]
[380310000,1755652266109,-2486.3476636,0.00017599,2]
[380310001,1755652266119,-2486.3476636,0.00017599,2]
[380310002,1755652266130,-2486.34,0.00017599,2]
[380310003,1755652266139,-5746.46831103,0.00017599,2]
[380310004,1755652266149,-5746.46831103,0.00017599,2]
[380310005,1755652266159,-5746.46831103,0.00017599,2]
[380310006,1755652266168,-5746.46831103,0.00017599,2]
[380310007,1755652266178,-5746.46831103,0.00017599,2]
[380310008,1755652266187,-5746.46831103,0.00017599,2]
[380310009,1755652266196,-5746.46831103,0.00017599,2]
[380310010,1755652266206,-5746.46831103,0.00017599,2]
[380310011,1755652266215,-5746.46831103,0.00017599,2]
[380310012,1755652266224,-5746.46831103,0.00017599,2]
[380310013,1755652266233,-5746.46831103,0.00017599,2]
[380310014,1755652266243,-5746.46831103,0.00017599,2]
[380310015,1755652266252,-5746.46831103,0.00017599,2]
[380310016,1755652266261,-5746.46831103,0.00017599,2]
[380310017,1755652266272,-5746.46831103,0.00017599,2]
[380310018,1755652266283,-5746.46831103,0.00017599,2]
[380310019,1755652266292,-5746.46831103,0.00017599,2]
[380310020,1755652266301,-5746.46831103,0.00017599,2]
[380310021,1755652266311,-5746.46831103,0.00017599,2]
[380310022,1755652266320,-5746.46,0.00017599,2]
[380310023,1755652266329,-150.0,0.00017604,2]
[380310024,1755652266340,-150.0,0.00017612,2]
[380310025,1755652266350,-150.0,0.00017621,2]
[380310026,1755652266359,-150.0,0.00017628,2]
[380310027,1755652266368,-150.0,0.00017647,2]
[380310028,1755652266378,-182.51018601,0.00017658,2]
[380310029,1755652266386,-150.0,0.00017658,2]
[380310030,1755652266395,-300.0,0.00017672,2]
[380310031,1755652266405,-300.0,0.00017672,2]
[380310032,1755652266414,-300.0,0.00017672,2]
[380310033,1755652266423,-300.0,0.00017672,2]
[380310034,1755652266433,-300.0,0.00017672,2]
[380310035,1755652266442,-500.0,0.00017673,2]
[380310036,1755652266451,-500.0,0.00017673,2]
[380310037,1755652266461,-500.0,0.00017673,2]
[380310038,1755652266471,-446.08304305,0.00017673,2]
[380310039,1755652266481,-173.12209304,0.00017673,2]
[380310040,1755652266490,-293.80917281,0.00017673,2]
[380310041,1755652266499,-500.0,0.00017673,2]
[380310042,1755652266509,-500.0,0.00017673,2]
[380310043,1755652266518,-159.99623727,0.00017673,2]
[380310044,1755652266528,-534.43457318,0.00017673,2]
[380310045,1755652266537,-500.00892829,0.00017673,2]
[380310046,1755652266547,-160.00018923,0.00017673,2]
[380310047,1755652266556,-159.99790107,0.00017673,2]
[380310048,1755652266565,-159.97807903,0.00017673,2]
[380310049,1755652266575,-500.0,0.00017673,2]
[380310050,1755652266584,-160.01423409,0.00017673,2]
[380310051,1755652266593,-500.0,0.00017673,2]
[380310052,1755652266602,-527.81920081,0.00017673,2]
[380310053,1755652266611,-1425.0,0.00017679,2]
[380310054,1755652266620,-150.0,0.00017681,2]
[380310055,1755652266629,-788.60002085,0.00017682,2]
[380310056,1755652266640,-150.0,0.00017682,2]
[380310057,1755652266652,-1005.07845795,0.00017683,2]
[380310058,1755652266662,-1221.55689504,0.00017684,2]
[380310059,1755652266671,-1438.03533214,0.00017685,2]
[380310060,1755652266681,-1654.51376923,0.00017685,2]
[380310061,1755652266690,-1870.99220633,0.00017686,2]
[380310062,1755652266700,-2087.47064343,0.00017687,2]
[380310063,1755652266709,-2303.94908052,0.00017688,2]
[380310064,1755652266719,-150.0,0.00017688,2]
[380310065,1755652266729,-150.0,0.00017688,2]
[380310066,1755652266741,-2520.42751762,0.00017689,2]
[380310067,1755652266752,-300.0,0.0001769,2]
[380310068,1755652266764,-300.0,0.0001769,2]
[380310069,1755652266773,-300.0,0.0001769,2]
[380310070,1755652266784,-300.0,0.0001769,2]
[380310071,1755652266793,-5800.0,0.00017691,2]
[380310072,1755652266802,-446.3129037,0.00017698,2]
[380310073,1755652266811,-300.0,0.00017698,2]
[380310074,1755652266820,-300.0,0.00017698,2]
[380310075,1755652266830,-300.0,0.00017698,2]
[380310076,1755652266839,-300.0,0.00017698,2]
[380310077,1755652266848,-300.0,0.00017698,2]
[380310078,1755652266857,-300.0,0.00017698,2]
[380310079,1755652266866,-300.0,0.00017698,2]
[380310080,1755652266875,-300.0,0.00017698,2]
[380310081,1755652266884,-300.0,0.00017698,2]
[380310082,1755652266893,-300.0,0.00017698,2]
[380310083,1755652267132,-300.0,0.00017698,2]
[380310084,1755652267153,-56815.62537815,0.00017699,2]
[380310085,1755652268785,-1027.342687,0.00011216,2]
[380310086,1755652268795,-151.0,0.00011216,2]
[380310087,1755652268805,-1430.037512,0.00011216,2]
[380310088,1755652268814,-1027.342687,0.00011216,2]
[380310089,1755652268823,-1430.037512,0.000133,2]
[380310090,1755652268833,-1027.342687,0.000133,2]
[380310091,1755652268842,-261.576143,0.000133,2]
[380310092,1755652268851,-1430.037512,0.000133,2]
[380310093,1755652268861,-1027.342687,0.000133,2]
[380310094,1755652268870,-1430.037512,0.00016438,2]
[380310095,1755652268880,-1027.342687,0.00016438,2]
[380310096,1755652268889,-3326.2511285,0.00017699,2]
[380310097,1755652269002,-1176.849,0.00017699,2]
[380310117,1755653432206,-5000.0,0.0001,2]
[380310118,1755653432215,-1810.4166591,0.000105,2]
[380310119,1755653432224,-1200.0,0.00010798,2]
[380310120,1755653432234,-1200.0,0.00010799,2]
[380310121,1755653432243,-300.0,0.00010799,2]
[380310122,1755653432253,-150.0,0.00010799,2]
[380310123,1755653432263,-136813.42429014,0.000108,2]
[380310124,1755653432456,-17350.08220541,0.000108,2]
[380310125,1755653432467,-646.4287366,0.000108,2]
[380310126,1755653432479,-1152.0,0.000108,2]
[380310127,1755653432490,-3386.76,0.000108,2]
[380310142,1755653438207,-3348.6000001,0.000108,2]
[380310143,1755653438218,-259.09159223,0.000108,2]
[380310144,1755653438283,-320.03720915,0.000108,2]
[380310145,1755653438378,-365.83761315,0.000108,2]
[380310146,1755653438389,-343.93041777,0.000108,2]
[380310394,1755653441038,-26071.26172649,0.000108,2]
[380310396,1755653441047,-31000.0,0.000108,2]
[380310398,1755653441056,-150.06916524,0.000109,2]
[380310400,1755653441066,-151.92560146,0.000109,2]
[380310402,1755653441076,-180.7096,0.000109,2]
[380310404,1755653441085,-244.94501421,0.000109,2]
[380310406,1755653441095,-201.22,0.00010912,2]
[380310408,1755653441104,-203.58,0.00010912,2]
[380310410,1755653441114,-202.47,0.00010912,2]
[380310412,1755653441123,-305.08,0.00010912,2]
[380310414,1755653441132,-201.14,0.00010912,2]
[380310416,1755653441141,-200.53,0.00010912,2]
[380310418,1755653441150,-202.43,0.00010912,2]
[380310420,1755653441160,-200.71,0.00010912,2]
[380310422,1755653441169,-202.95,0.00010912,2]
[380310424,1755653441179,-200.53,0.00010912,2]
[380310426,1755653441188,-202.78,0.00010912,2]
[380310428,1755653441197,-202.34,0.00010912,2]
[380310430,1755653441206,-302.88,0.00010912,2]
[380310432,1755653441215,-203.64,0.00010912,2]
[380310434,1755653441225,-201.89,0.00010912,2]
[380310436,1755653441234,-203.68,0.00010912,2]
[380310438,1755653441243,-300.61,0.00010912,2]
[380310440,1755653441253,-202.99,0.00010912,2]
[380310442,1755653441262,-202.48,0.00010912,2]
[380310444,1755653441271,-305.47,0.00010912,2]
[380310446,1755653441280,-203.98,0.00010912,2]
[380310448,1755653441290,-301.71,0.00010913,2]
[380310450,1755653441299,-203.59,0.00010913,2]
[380310452,1755653441309,-200.48,0.00010913,2]
[380310454,1755653441318,-200.84,0.00010913,2]
[380310456,1755653441328,-201.57,0.00010913,2]
[380310458,1755653441338,-203.88,0.00010913,2]
[380310460,1755653441347,-301.77,0.00010913,2]
[380310462,1755653441357,-200.44,0.00010913,2]
[380310464,1755653441366,-203.97,0.00010913,2]
[380310466,1755653441376,-200.33,0.00010913,2]
[380310468,1755653441386,-301.67,0.00010913,2]
[380310470,1755653441395,-202.93,0.00010913,2]
[380310472,1755653441405,-200.12,0.00010913,2]
[380310474,1755653441415,-200.72,0.00010913,2]
[380310476,1755653441426,-304.71,0.00010913,2]
[380310478,1755653441437,-203.16,0.00010913,2]
[380310480,1755653441446,-203.37,0.00010913,2]
[380310482,1755653441456,-202.63,0.00010913,2]
[380310484,1755653441465,-302.43,0.00010913,2]
[380310486,1755653441475,-303.45,0.00010913,2]
[380310488,1755653441484,-303.04,0.00010913,2]
[380310490,1755653441493,-201.98,0.00010913,2]
[380310492,1755653441502,-202.75,0.00010913,2]
[380310494,1755653441519,-301.14,0.00010913,2]
[380310496,1755653441534,-305.01,0.00010915,2]
[380310498,1755653441543,-304.7,0.00010915,2]
[380310500,1755653441551,-302.97,0.00010926,2]
[380310502,1755653441561,-304.03,0.00010926,2]
[380310504,1755653441569,-13644.4235921,0.0001098,2]
[380310506,1755653441581,-29991.74,0.0001098,2]
[380310508,1755653441591,-304.69,0.00010987,2]
[380310510,1755653441600,-303.8,0.00010987,2]
[380310512,1755653441609,-305.08,0.00010987,2]
[380310514,1755653441618,-151.0,0.00010993,2]
[380310516,1755653441627,-151.0,0.00010993,2]
[380310518,1755653441637,-151.0,0.00010993,2]
[380310520,1755653441646,-151.0,0.00010993,2]
[380310522,1755653441660,-151.0,0.00010993,2]
[380310524,1755653441669,-151.0,0.00010993,2]
[380310526,1755653441679,-151.0,0.00010993,2]
[380310528,1755653441689,-151.0,0.00010993,2]
[380310530,1755653441699,-151.0,0.00010993,2]
[380310532,1755653441708,-151.0,0.00010993,2]
[380310534,1755653441717,-151.0,0.00010993,2]
[380310536,1755653441727,-151.0,0.00010993,2]
[380310538,1755653441737,-500.0,0.00010999,2]
[380310540,1755653441746,-493.73083717,0.00010999,2]
[380310542,1755653441755,-361.61347352,0.00010999,2]
[380310544,1755653441764,-281.45203661,0.00010999,2]
[380310546,1755653441774,-318.95847818,0.00010999,2]
[380310548,1755653441783,-472.8704319,0.00010999,2]
[380310550,1755653441792,-168.71386998,0.00010999,2]
[380310552,1755653441801,-173.34632786,0.00010999,2]
[380310554,1755653441811,-35995.90276959,0.00011,2]
[380310580,1755653443431,-526.31950721,0.00011,2]
[380310600,1755653446514,-38003.16318821,0.00011,2]
[380310605,1755653503282,805.63,0.000221,120]
[380310608,1755654100364,700.0,0.00022,120]
[380310609,1755654345842,150.0,9e-05,2]
[380310610,1755654470522,1000.0,6e-07,120]
[380310611,1755654477612,1000.0,6e-07,120]
[380310612,1755654488692,1000.0,6e-07,120]
[380310613,1755654496663,1000.0,6e-07,120]
[380310614,1755654504732,1000.0,6e-07,120]
[380310615,1755654513638,1000.0,6e-07,120]
[380310617,1755654521909,1000.0,6e-07,120]
[380310618,1755654530134,950.0,6e-07,120]
[380310635,1755654635680,-154.57765957,9.888e-05,2]
[380310636,1755654635690,-154.18021783,9.888e-05,2]
[380310637,1755654635700,-151.3214313,9.888e-05,2]
[380310638,1755654635709,-289.00723313,9.888e-05,2]
[380310639,1755654635718,-300.0,9.944e-05,2]
[380310640,1755654635727,-151.0,0.0001,7]
[380310641,1755654635737,-725.82109787,0.0001,7]
[380310642,1755654635746,-150.0,0.0001018,2]
[380310643,1755654635755,-1000.0,0.0001025,2]
[380310644,1755654635764,-250.0,0.00010876,2]
[380310645,1755654635773,-2000.0,0.00010876,2]
[380310646,1755654635782,-250.0,0.00010876,2]
[380310647,1755654635791,-300.0,0.00010876,2]
[380310648,1755654635800,-1200.0,0.00010889,2]
[380310649,1755654635809,-2717.95301,0.0001089,2]
[380310650,1755654635819,-315.04756829,0.00010893,2]
[380310651,1755654635828,-315.04756825,0.00010894,2]
[380310652,1755654635837,-300.0,0.00010894,2]
[380310653,1755654635846,-282.0,0.00010894,2]
[380310654,1755654635855,-315.04756825,0.00010895,2]
[380310655,1755654635864,-315.04756825,0.00010895,2]
[380310656,1755654635874,-315.04756825,0.00010896,2]
[380310657,1755654635883,-315.04756825,0.00010897,2]
[380310658,1755654635891,-315.04756825,0.00010898,2]
[380310659,1755654635904,-300.0,0.00010898,2]
[380310660,1755654635913,-315.04756825,0.00010898,2]
[380310661,1755654635923,-315.04756825,0.00010899,2]
[380310662,1755654635932,-315.04756825,0.000109,2]
[380310663,1755654635941,-406.91035874,0.000109,2]
[380310664,1755654635950,-1525.899,0.00010903,2]
[380310665,1755654635959,-150.0,0.00010978,2]
[380310666,1755654635969,-788.74947443,0.00010978,2]
[380310667,1755654635978,-1005.26893799,0.00010978,2]
[380310668,1755654635987,-1221.78840156,0.00010978,2]
[380310669,1755654635996,-1438.30786513,0.00010978,2]
[380310670,1755654636006,-150.0,0.00010978,2]
[380310671,1755654636017,-1654.8273287,0.00010979,2]
[380310672,1755654636027,-1871.34679227,0.00010979,2]
[380310673,1755654636038,-2087.86625584,0.00010979,2]
[380310674,1755654636048,-2304.3857194,0.00010979,2]
[380310675,1755654636058,-2520.90518297,0.00010979,2]
[380310676,1755654636067,-1003.96884645,0.00010987,2]
[380310678,1755654636077,-2786.79,0.00010988,2]
[380310680,1755654636086,-2786.79,0.00010988,2]
[380310681,1755654636097,-212.36788366,0.00010988,2]
[380310682,1755654636111,-2574.42211634,0.00010988,2]
[380310683,1755654636119,-768.36872947,0.00010988,2]
[380310684,1755654636131,-2018.42127053,0.00010988,2]
[380310685,1755654636141,-2418.46111791,0.00010988,2]
[380310686,1755654636155,-368.32888209,0.00010988,2]
[380310687,1755654636165,-435.18111791,0.00010988,2]
[380310688,1755654636249,-462.92298639,0.00010988,2]
[380310689,1755654636260,-1888.6858957,0.00010988,2]
[380310690,1755654636270,-661.45960678,0.00010988,2]
[380310691,1755654636282,-2037.58996455,0.00010988,2]
[380310692,1755654636337,-87.74042867,0.00010988,2]
[380310693,1755654636347,-2786.79,0.00010988,2]
[380310694,1755654636357,-2786.79,0.00010988,2]
[380310695,1755654636367,-2786.79,0.00010988,2]
[380310696,1755654636377,-2786.79,0.00010988,2]
[380310697,1755654636386,-2125.01279183,0.00010988,2]
[380310698,1755654636501,-661.77720817,0.00010988,2]
[380310699,1755654636511,-2683.44195114,0.00010988,2]
[380310700,1755654636522,-103.34804886,0.00010988,2]
[380310701,1755654636531,-385.3530716,0.00010988,2]
[380310702,1755654636542,-2262.34082434,0.00010988,2]
[380310707,1755654636576,-139.09610406,0.00010988,2]
[380310708,1755654636586,-2786.79,0.00010988,2]
[380310709,1755654636595,-2786.79,0.00010988,2]
[380310711,1755654636605,-2786.79,0.00010988,2]
[380310713,1755654636614,-2786.79,0.00010988,2]
[380310715,1755654636623,-2786.79,0.00010988,2]
[380310717,1755654636632,-2786.79,0.00010988,2]
[380310719,1755654636642,-2382.46389593,0.00010988,2]
[380310721,1755654636656,-404.32610407,0.00010988,2]
[380310723,1755654636665,-2786.79,0.00010988,2]
[380310725,1755654636674,-2786.79,0.00010988,2]
[380310727,1755654636683,-2786.99861546,0.00010988,2]
[380310730,1755654636692,-1033.29,0.00010988,2]
[380310734,1755654636702,-153.12196338,0.00010988,2]
[380310736,1755654636711,-59611.20655252,0.00010989,2]
[380310740,1755654636722,-48318.6665161,0.00010989,2]
[380310742,1755654636732,-13771.55575399,0.00010989,2]
[380310744,1755654636743,-28120.58777914,0.00010989,2]
[380310752,1755654636820,-252.79150381,0.00010989,2]
[380310753,1755654636832,-377.0,0.00010989,2]
[380310754,1755654636844,-13016.59416001,0.00010989,2]
[380310755,1755654636907,-602.06618799,0.00010989,2]
[380310756,1755654636919,-4520.87040091,0.00010989,2]
[380310873,1755654639947,-33900.0,0.00010989,2]
[380310880,1755654640005,-244096.40383443,0.00010989,2]
[380310882,1755654640015,-150.0,0.00010989,2]
[380310884,1755654640025,-500.0,0.00010989,2]
[380310886,1755654640037,-150.0,0.00010989,2]
[380310888,1755654640046,-500.0,0.00010989,2]
[380310890,1755654640055,-150.0,0.00010989,2]
[380310892,1755654640066,-500.0,0.00010989,2]
[380310894,1755654640076,-152.30575367,0.00010993,2]
[380310896,1755654640085,-200.0,0.00010993,2]
[380310898,1755654640094,-160.56707192,0.00010993,2]
[380310899,1755654640104,-500.0,0.00010993,2]
[380310900,1755654640114,-500.0,0.00010993,2]
[380310901,1755654640124,-500.0,0.00010993,2]
[380310902,1755654640134,-500.0,0.00010993,2]
[380310903,1755654640143,-500.0,0.00010993,2]
[380310904,1755654640154,-500.0,0.00010993,2]
[380310905,1755654640163,-500.0,0.00010993,2]
[380310906,1755654640173,-500.0,0.00010993,2]
[380310907,1755654640182,-500.0,0.00010993,2]
[380310908,1755654640191,-479.97878947,0.00010993,2]
[380310910,1755654640202,-518.23949727,0.00010993,2]
[380310912,1755654640211,-8136036.2538526,0.00011,2]
[380310914,1755654640223,-442.49999999,0.00011,2]
[380310920,1755654640268,-5807.00408636,0.00011,2]
[380311079,1755654641911,-56445.00000001,0.00011,2]
[380311083,1755654641941,-66537.57873565,0.00011,2]
[380311088,1755654641972,-935.77172341,0.00011,2]
[380311090,1755654641983,-1742.62161797,0.00011,2]
[380311092,1755654641994,-335.11751138,0.00011,2]
[380311098,1755654642038,-307.12913325,0.00011,2]
[380311251,1755654643515,-150.18887767,0.000109,2]
[380311254,1755654643525,-408.80779075,0.00010989,2]
[380311276,1755654643721,-4865.1401764,0.00010989,2]
[380311284,1755654643771,-1817.76016677,0.00010989,2]
[380311571,1755654646643,-9037.43099233,0.00010989,2]
[380311573,1755654646659,-420.02087101,0.00010989,2]
[380311575,1755654646670,-3190.34709105,0.00010989,2]
[380311580,1755654646701,-2302.3,0.00010989,2]
[380311582,1755654646712,-666.91857134,0.00010989,2]
[380311592,1755654646805,-399.58788103,0.00010989,2]
[380311596,1755654646861,-28879.62509046,0.00010989,2]
[380311598,1755654646873,-11867.15731143,0.00010989,2]
[380311654,1755655192060,-150.0,9.9e-05,2]
[380311655,1755655192081,-137.42282622,9.975e-05,2]
[380311657,1755655426658,2000.0,6e-07,120]
[380311658,1755655434059,2000.0,6e-07,120]
[380311659,1755655447968,2000.0,6e-07,120]
[380311660,1755655454945,2000.0,6e-07,120]
[380311661,1755655462499,2000.0,6e-07,120]
[380311662,1755655469569,2000.0,6e-07,120]
[380311663,1755655478300,2000.0,6e-07,120]
[380311664,1755655515940,2000.0,6e-07,120]
[380311665,1755655522018,-112.57717378,9.975e-05,2]
[380311666,1755655522041,-56.58974495,0.0001,3]
[380311667,1755655522918,2000.0,6e-07,120]
[380311668,1755655524311,-347.29365282,0.0001,3]
[380311669,1755655526638,-223.07341633,0.0001,3]
[380311670,1755655528125,-152.24088321,0.0001,3]
[380311671,1755655529799,2000.0,6e-07,120]
[380311672,1755655531141,-186.9480147,0.0001,3]
[380311673,1755655533873,-179.45319945,0.0001,3]
[380311674,1755655535339,-299.73482975,0.0001,3]
[380311675,1755655537695,-166.84895843,0.0001,3]
[380311676,1755655537758,2000.0,6e-07,120]
[380311677,1755655539740,-178.12137767,0.0001,3]
[380311678,1755655544522,-169.125044,0.0001,3]
[380311679,1755655545810,2000.0,6e-07,120]
[380311680,1755655545962,-201.08238331,0.0001,3]
[380311681,1755655553129,2000.0,6e-07,120]
[380311682,1755655561050,2000.0,6e-07,120]
[380311683,1755655568353,2000.0,6e-07,120]
[380311684,1755655569352,-183.19346965,0.0001,3]
[380311685,1755655571792,-185.050511,0.0001,3]
[380311686,1755655574000,-300.17856362,0.0001,3]
[380311687,1755655575095,2000.0,6e-07,120]
[380311688,1755655576188,-152.18297532,0.0001,3]
[380311689,1755655578784,-18.88297579,0.0001,3]
[380311690,1755655578807,-193.16116058,0.0001,2]
[380311691,1755655580830,-52.79433942,0.0001,2]
[380311692,1755655580854,-124.58157727,0.0001,4]
[380311693,1755655582054,2000.0,6e-07,120]
[380311694,1755655583460,-235.26296111,0.0001,4]
[380311695,1755655586060,-184.88180825,0.0001,4]
[380311696,1755655589618,-278.61063792,0.0001,4]
[380311697,1755655590335,2000.0,6e-07,120]
[380311698,1755655592999,-215.90610509,0.0001,4]
[380311699,1755655596468,2000.0,6e-07,120]
[380311700,1755655596586,-258.52216179,0.0001,4]
[380311701,1755655598443,-283.58147838,0.0001,4]
[380311702,1755655601218,-241.61332438,0.0001,4]
[380311703,1755655602893,-344.06252611,0.0001,4]
[380311704,1755655604129,2000.0,6e-07,120]
[380311705,1755655604604,-181.19761406,0.0001,4]
[380311706,1755655607342,-191.72426924,0.0001,4]
[380311707,1755655612310,2000.0,6e-07,120]
[380311708,1755655619409,2000.0,6e-07,120]
[380311709,1755655627146,2000.0,6e-07,120]
[380311710,1755655630807,-324.69570717,0.0001,4]
[380311711,1755655636081,2000.0,6e-07,120]
[380311712,1755655644021,2000.0,6e-07,120]